Cogmind - Beta 15 X1 @@@ ROGUE MODE // 2024.11.09 @ 19:03:34 Player: Some Pennies Result: Destroyed by YQ-7ZC(R) with Subdweller Shrapnel Launcher Performance ------------- Evolutions (0) 0 Regions Visited (2) 400 Robots Destroyed (37) 185 Value Destroyed (888) 888 Prototype IDs (0) 0 Alien Tech Used (0) 0 Bonus (0) 0 TOTAL SCORE: 1473 Bonus ------- None Cogmind --------- Core Integrity 0/250 Matter 290/300 Energy 99/125 System Corruption 0% Temperature Cool (18) Movement Treading (400) Ox3 Location -10/Subcaves Parts ------- > --- POWER (1) -------- Light Ion Engine > --- PROPULSION (2) --- Light Treads > --- UTILITY (2) ------ High-capacity Storage Unit Medium Armor Plating > --- WEAPON (2) ------- Subdweller Laser Subdweller Beam Cannon > --- INVENTORY (20) --- Light Nuclear Core Light Nuclear Core Aluminum Leg Subdweller Monowheel Heat Sink Improved Heat Sink Machine Analyzer Improved Terrain Scanner Seismic Detector Medium Armor Plating Subdweller Laser Subdweller Laser Powered Cannon Subdweller Machine Gun Barrage Gun Rocket Launcher Datajack Mining Laser Peak State ------------ > --- POWER ------------ Light Ion Engine > --- PROPULSION ------- Light Treads Light Treads > --- UTILITY ---------- High-capacity Storage Unit Medium Armor Plating > --- WEAPON ----------- Subdweller Laser Subdweller Beam Cannon > --- INVENTORY -------- Light Nuclear Core Light Nuclear Core Aluminum Leg Subdweller Monowheel Heat Sink Improved Heat Sink Machine Analyzer Improved Terrain Scanner Seismic Detector Medium Armor Plating Medium Armor Plating Particle Gun Particle Gun Powered Cannon Subdweller Machine Gun Subdweller Machine Gun Rocket Launcher Datajack Mining Laser [Rating: 15] Favorites ----------- Power Light Ion Engine Engine Light Ion Engine Propulsion Light Treads Treads Light Treads Utility High-capacity Storage Unit Device Seismic Detector Storage High-capacity Storage Unit Protection Medium Armor Plating Weapon Assault Rifle Energy Gun Particle Gun Energy Cannon Subdweller Beam Cannon Ballistic Gun Assault Rifle Launcher Rocket Launcher Build | -11 -10 -10 ------- Run | Yrd Mat Sub Slots Evolved . | . . . Power . | . . . Propulsion . | . . . Utility . | . . . Weapon . | . . . Parts Attached 23 | 8 4 11 Power 2 | 1 1 . Engine 2 | 1 1 . Core . | . . . Reactor . | . . . Propulsion 3 | 2 . 1 Treads 3 | 2 . 1 Leg . | . . . Wheel . | . . . Hover . | . . . Flight . | . . . Utility 8 | 2 3 3 Device 1 | 1 . . Storage 4 | 1 3 . Processor . | . . . Hackware . | . . . Protection 3 | . . 3 Artifact . | . . . Weapon 10 | 3 . 7 Energy Gun 4 | . . 4 Energy Cannon 1 | . . 1 Ballistic Gun 3 | 3 . . Ballistic Cannon . | . . . Launcher 2 | . . 2 Special Weapon . | . . . Impact Weapon . | . . . Slashing Weapon . | . . . Piercing Weapon . | . . . Special Melee Weapon . | . . . Unidentified Prototypes . | . . . Parts Lost 5 | . . 5 Power . | . . . Propulsion 2 | . . 2 Utility 2 | . . 2 Weapon 1 | . . 1 Highest Loss Streak 2 | . . 2 To Critical Strikes . | . . . Average Backups 17 | 4 17 19 Power 1 | . 1 2 Propulsion 2 | 1 3 2 Utility 6 | . 5 7 Weapon 5 | 1 5 6 Tool/Special . | . . . Unused Backups 27 | . 7 20 Power 2 | . . 2 Propulsion 4 | . . 4 Utility 10 | . 4 6 Weapon 10 | . 3 7 Tool/Special 1 | . . 1 Average Slot Usage (%) 99 | . 99 99 Engine 14 | . 14 14 Treads 27 | . 27 28 Device 8 | . 14 4 Storage 14 | . 14 14 Protection 5 | . . 9 Energy Gun 10 | . . 19 Energy Cannon 3 | . . 6 Ballistic Gun 13 | . 28 1 Peak Build Rating 15 | 8 10 15 Average Rating 11 | 5 9 13 On Entrance 6 | . 8 10 Naked Turns . | . . . Heaviest Build 62 | 15 50 62 Greatest Support 40 | 40 40 40 Greatest Overweight (x) 1 | . 1 1 Average Overweight (x) . | . . 1 Largest Inventory Capacity 20 | 8 20 20 Average Capacity 18 | 7 18 20 Most Carried 20 | 7 20 20 Average Carried 18 | 4 17 19 Final Capacity 20 | 8 20 20 Final Carried 20 | 7 20 19 Class Distribution -------------------- 100% | Mutant Dominant Class ---------------- Mutant | -10/Materials Mutant | -10/Subcaves Resources | -11 -10 -10 ----------- Run | Yrd Mat Sub Matter Collected 1232 | 334 438 460 Remotely . | . . . Salvage Created 1265 | 126 791 348 Parts 88 | 12 40 36 Haulers Intercepted 2 | . 2 . Recyclers Shooed 7 | . 7 . Parts Field Recycled . | . . . Retrieved Matter . | . . . Parts Self-Destructed 11 | . . 11 Prevented . | . . . Kills | -11 -10 -10 ------- Run | Yrd Mat Sub Combat Hostiles Destroyed 23 | . 8 15 Guns 16 | . 8 8 Cannons 2 | . . 2 AOE 5 | . . 5 Classes Destroyed 10 | 2 5 3 Builder 1 | . 1 . Tunneler 2 | 2 . . Hauler 2 | . 2 . Recycler 5 | 1 4 . Turret 2 | . . 2 Watcher 2 | . 2 . Swarmer 6 | . 2 4 Grunt 6 | . 6 . Artisan 1 | . . 1 Subdweller 11 | . . 11 Best Kill Streak 5 | 1 5 4 Combat Bots Only 4 | . 2 4 Max Kills in Single Turn 2 | 1 2 2 Gunslinging 1 | . 1 . Exploded 2 | . . 2 Melee . | . . . Uniques/NPCs Destroyed . | . . . Combat | -11 -10 -10 -------- Run | Yrd Mat Sub Hostile Shots Fired 153 | . 52 101 Missed 51 | . 18 33 Damage Taken 1475 | . 428 1047 Core 281 | . 102 179 Absorbed by Shields . | . . . Regen/Repaired (Parts) 133 | . 133 . Core Remaining (%) 100 | 100 . . Volleys Fired 126 | 9 64 53 Largest 2 | 2 2 2 Hottest 145 | 40 40 145 Shots Fired 223 | 18 128 77 Gun 200 | 18 128 54 Cannon 6 | . . 6 Launcher 17 | . . 17 Special . | . . . Kinetic 160 | 18 128 14 Thermal 46 | . . 46 Explosive 17 | . . 17 Electromagnetic . | . . . Robot Hit Streak 10 | 7 10 7 Robot Miss Streak 3 | 3 3 2 Penetration Max . | . . . Secondary Targets 3 | . 2 1 Max Gunslinging Chain 1 | . 1 1 Shots Hit Robots 126 | 12 86 28 Core Hits 67 | 4 32 31 Critical Kills . | . . . Critical Parts Destroyed . | . . . Critical Strikes 3 | . . 3 Burn 3 | . . 3 Melee Attacks . | . . . Impact . | . . . Slashing . | . . . Piercing . | . . . Sneak Attacks . | . . . Combat Hostiles . | . . . Follow-up Attacks . | . . . Damage Inflicted 2910 | 151 1119 1640 Guns 1629 | 151 1119 359 Cannons 85 | . . 85 Explosions 1196 | . . 1196 Melee . | . . . Ramming . | . . . Kinetic 1345 | 151 1119 75 Thermal 369 | . . 369 Explosive 1196 | . . 1196 Electromagnetic . | . . . Impact . | . . . Slashing . | . . . Piercing . | . . . Highest Corruption . | . . . Average Corruption . | . . . Corruption Purged . | . . . Corruption Blocked . | . . . Overload Shots . | . . . Overflow Damage 13 | . . 13 Projectiles . | . . . Explosions 13 | . . 13 Melee . | . . . Knockbacks . | . . . Impact . | . . . Kinetic . | . . . Secondary . | . . . Self-Inflicted Damage 15 | . . 15 Shots 1 | . . 1 Rammed . | . . . Targets Rammed . | . . . Kicked . | . . . Crushed . | . . . Highest Temperature 280 | . 29 280 Average Temperature 53 | . 8 70 Received Heat Transfer 749 | . 243 506 Siege Activations . | . . . Martial Activations . | . . . Shielding Activations . | . . . Robots Disrupted . | . . . Combat Hostiles . | . . . Robots Corrupted . | . . . Combat Hostiles . | . . . Parts Fried . | . . . Impact Corruptions . | . . . Robots Melted . | . . . Combat Hostiles . | . . . Parts Melted 4 | . . 4 Heat Transferred 950 | . . 950 Parts Sabotaged . | . . . Parts Stolen . | . . . Parts Stripped . | . . . Power Chain Reactions . | . . . Alert | -11 -10 -10 ------- Run | Yrd Mat Sub Maximum Alert Level . | . . . Low Security (%) 100 | 100 100 . Level 1 . | . . . Level 2 . | . . . Level 3 . | . . . Level 4 . | . . . Level 5 . | . . . High Security . | . . . Max Security . | . . . Peak Influence 70 | 5 70 . Initial . | . . . Average 11 | 1 12 . Influence Increases 556 | 15 271 270 Destroy 0b10 Robot/C 280 | . 160 120 Destroy 0b10 Robot/NC 60 | 15 45 . Destroy Leader 48 | . 48 . Successful Hack 15 | . 15 . Destroy Structure 3 | . 3 . Lose Combat Pursuer 150 | . . 150 Influence Decreases 556 | 15 271 270 Time Decay 556 | 15 271 270 Squads Dispatched . | . . . Investigation . | . . . Extermination . | . . . Reinforcement . | . . . Assault . | . . . Garrison . | . . . Intercept . | . . . Searches Triggered . | . . . Construction Impeded . | . . . Haulers Reinforced . | . . . Active Scanning Responses . | . . . Cargo Convoy Interrupts . | . . . Stealth | -11 -10 -10 --------- Run | Yrd Mat Sub Distress Signals 2 | . 2 . Communications Jammed . | . . . Distress Signals . | . . . Times Spotted 40 | . 17 23 Peak Tracking Total 6 | . 4 6 Tactical Retreats 3 | . . 3 Traps | -11 -10 -10 ------- Run | Yrd Mat Sub Traps Triggered 1 | . . 1 Indirectly . | . . . Trap Hack Attempts . | . . . Triggered . | . . . Disarmed . | . . . Reprogrammed . | . . . Reused . | . . . Traps Extracted . | . . . Installed . | . . . Triggered . | . . . Machines | -11 -10 -10 ---------- Run | Yrd Mat Sub Machines Disabled 3 | . . 3 Max in Single Turn 2 | . . 2 Machines Repaired . | . . . Machines Dismantled . | . . . Machines Sabotaged . | . . . Overloaded Fab Kills . | . . . Hacking | -11 -10 -10 --------- Run | Yrd Mat Sub Machines Accessed 7 | . 6 1 Terminals 4 | . 4 . Fabricators . | . . . Repair Stations 1 | . 1 . Recycling Units 1 | . 1 . Scanalyzers . | . . . Garrison Access . | . . . Total Hacks 24 | . 19 5 Successful 16 | . 11 5 Failed 8 | . 8 . Catastrophic . | . . . Database Lockouts . | . . . Manual 11 | . 11 . Terminals 13 | . 13 . Fabricators . | . . . Repair Stations 4 | . 4 . Recycling Units 2 | . 2 . Scanalyzers . | . . . Garrison Access . | . . . Terminal Hacks 6 | . 1 5 Record 5 | . . 5 Robot Analysis 1 | . 1 . Fabricator Hacks . | . . . Repair Station Hacks 4 | . 4 . Scan Component 2 | . 2 . Repair 2 | . 2 . Recycling Unit Hacks 1 | . 1 . Retrieve Components 1 | . 1 . Scanalyzer . | . . . Garrison Access Hacks . | . . . Unauthorized Hacks 5 | . 5 . Terminals 5 | . 5 . Botnet 1 | . 1 . Skim 4 | . 4 . Fabricators . | . . . Repair Stations . | . . . Recycling Units . | . . . Scanalyzers . | . . . Garrison Access . | . . . Data Cores Recovered . | . . . Used . | . . . Hacking Detections 6 | . 6 . Full Trace Events 1 | . 1 . Feedback Events . | . . . Feedback Blocked . | . . . Robot Schematics Acquired . | . . . Robots Built . | . . . Authchips . | . . . Time . | . . . Total Robot Build Rating . | . . . Part Schematics Acquired . | . . . Parts Built . | . . . Authchips . | . . . Time . | . . . Total Part Build Rating . | . . . Parts Repaired 2 | . 2 . Time 52 | . 52 . Parts Recycled . | . . . Recycled Matter . | . . . Retrieved Matter . | . . . Retrieved Components 9 | . 9 . Parts Scanalyzed . | . . . Part Schematics Acquired . | . . . Parts Damaged . | . . . Bothacking | -11 -10 -10 ------------ Run | Yrd Mat Sub Used RIF Installer . | . . . Robots Hacked . | . . . Non-combat . | . . . Combat . | . . . Robot Hacks Applied . | . . . Relay Couplers Released . | . . . Fabnet Peak Effective % . | . . . Robots Rewired . | . . . Allies Hacked . | . . . Hacks Repelled . | . . . Allies | -11 -10 -10 -------- Run | Yrd Mat Sub Total Allies . | . . . Largest Group . | . . . Highest-Rated Group . | . . . Highest-Rated Ally . | . . . Total Orders . | . . . Ally Attacks . | . . . Total Damage . | . . . Kills . | . . . Allies Corrupted . | . . . Allies Melted . | . . . Intel | -11 -10 -10 ------- Run | Yrd Mat Sub Active Infowar (turns) 2236 | 35 1631 570 Seismic 2236 | 35 1631 570 Robot Analysis Total 1 | . 1 . Derelict Logs Recovered . | . . . Drone Launches . | . . . Drone Recoveries . | . . . Exploration | -11 -10 -10 ------------- Run | Yrd Mat Sub Turns Passed 3788 | 168 1631 1989 Spaces Moved 1412 | 82 593 737 Core 6 | 6 . . Treads 1406 | 76 593 737 Legs . | . . . Wheels . | . . . Hover . | . . . Flight . | . . . Fastest Speed 50 | 50 160 240 Average Speed 229 | 151 227 240 Slowest Speed 240 | 160 240 240 Overloaded Moves . | . . . Propulsion Burnouts . | . . . Robots Hopped . | . . . Cave-ins Triggered . | . . . Exploration Rate (%) 42 | 6 67 54 Regions Visited 2 Branch Regions 1 Pre-discovered Areas . | . . . Known Exits Taken . | . . . Unknown Exits Taken 2 | 1 1 . Scrap Searched . | . . . Spaces Dug . | . . . Terrain Destroyed 74 | . . 74 Melee . | . . . Projectile . | . . . AOE 74 | . . 74 Terrain Rammed . | . . . Walls Destroyed . | . . . Machines Disabled . | . . . Actions | -11 -10 -10 --------- Run | Yrd Mat Sub Total 1737 | 104 755 878 Wait 96 | . 57 39 Move 1410 | 81 592 737 Hop . | . . . Pick Up 40 | 6 23 11 Fast Attach 12 | 7 2 3 Attach 4 | . . 4 Detach . | . . . Swap 23 | 1 4 18 Drop 26 | . 13 13 Fire 126 | 9 64 53 Melee . | . . . Ram . | . . . Kick . | . . . Crush . | . . . Escape Stasis . | . . . Rewire . | . . . Trap . | . . . Miscellaneous . | . . . Route ------- -11/Scrapyard -10/Materials (discovered 5 exits: [*Mat x2] / [*Min x2] / *Sub) -10/Subcaves (discovered 1 exit: [*Rec]) History --------- Turn | Location | Event 7 | -11/Scrapyard | Discovered new exit (range 15) 169 | -11/Scrapyard | Entered Materials 330 | -10/Materials | Build established: Mutant 411 | -10/Materials | Discovered new exit (range 11) 601 | -10/Materials | Discovered new exit (range 10) 869 | -10/Materials | Derelicts attacked the area 1141 | -10/Materials | Discovered new exit (range 8) 1263 | -10/Materials | Discovered new exit (range 16) 1402 | -10/Materials | Repaired Lgt. Treads 1429 | -10/Materials | Repaired Lgt. Treads 1583 | -10/Materials | Discovered new exit (range 7) 1800 | -10/Materials | Entered Subcaves 1801 | -10/Subcaves | Approached by a straggling Scientist 1882 | -10/Subcaves | Discovered new exit (range 15) 1937 | -10/Subcaves | Core integrity fell below 50% 2760 | -10/Subcaves | A Subdweller sparked back to life 2760 | -10/Subcaves | A Subdweller sparked back to life 2760 | -10/Subcaves | A Subdweller sparked back to life 2801 | -10/Subcaves | Found Prototype Energy Cannon 2847 | -10/Subcaves | Shifting Twisted Machinery released Mak. Light Armor Plating 2850 | -10/Subcaves | Shifting Twisted Machinery released Sub. Beam Cannon 2920 | -10/Subcaves | Core integrity fell below 20% 2977 | -10/Subcaves | A swath of the cavern ceiling suddenly collapsed 3040 | -10/Subcaves | Shifting Twisted Machinery released Barrage Gun 3055 | -10/Subcaves | Shifting Twisted Machinery released Sub. Laser 3162 | -10/Subcaves | Visited Clippyterm 3169 | -10/Subcaves | Learned Factory fabricator intel 3169 | -10/Subcaves | Learned Research security intel 3494 | -10/Subcaves | A swath of the cavern ceiling suddenly collapsed 3636 | -10/Subcaves | Shifting Twisted Machinery released Mak. Thermal Plating 3784 | -10/Subcaves | Ambushed by angry Subdweller bent on revenge 3787 | -10/Subcaves | Ambushed by Subdweller buried in earth 3789 | -10/Subcaves | Destroyed by YQ-7ZC(R) with Subdweller Shrapnel Launcher Last Messages --------------- 03256_ Acquired 7 matter. 03273_ Acquired 40 matter. 03494_ 26 Matter crushed. A swath of the cavern ceiling suddenly collapses. Mak. Thermal Plating falls loose from the Twisted Machinery. 03703_ 2E-KNO(u) tweaks Twisted Machinery. 03732_ 2E-KNO(u) builds Twisted Machinery. 03735_ 2E-KNO(u) tweaks Twisted Machinery. 03778_ 2E-KNO(u) cries out in pain. 03778_ 2E-KNO(u) destroyed. 03784_ YQ-7ZC(R) angrily emerges from the Twisted Machinery. 03784_ YQ-7ZC(R): "WEHOME!" 03785_ Med. Armor Plating destroyed. 03787_ Lgt. Treads destroyed. 03788_ LZ-H1B(R): "GOODGOOD!" 03788_ Sub. Beam Cannon shoots sparks and powers down. Map ----- +----------------------------------------------------+ | ???????????????????????????# ## ### ##?? | | ???????????????????????????# [ #?? | | ??????????????????????????????????# [ " ### | | ??????????????????????????????????## ## " " | | ???????????????????????????????????????# /|" | | ???????????????????????????????????????# [ "" | | ???????????????????????????????????????# "" | | ???????????????????????????????????????# ## | | ???????????????????????????????????????## [= ## | | ????????????????????????????????????????### "* ""# | | ??????????????????????????????????????????## "" | | ???????????????????????????????????????????# " # | | ???????????????????????????????????????????# ## | | ???????????????????????????????????????????## ## | | ????????????????????????????????????????????# # | | ????????????????????????????????????????????## # | | ?????????????????????????????????????????????# # | | ???????????????????????????????????????##????# # | | ???????????????????????????????????????# ##### | | ???????????????????????????????????????# | | ????????????????????##########?????????# | | ????????????????????# ##????????# # | | ????????????????????# #####????# ## ## | | ??????????????????### ;## ##???##??# ##? | | ??????????????????#;R # #???????## #?? | | ?????????????????##" @ ######### # | | ?????????????????#""" R # """""""## | | ?????????????????##" ;## "" # | | ??????????????????# ; ### !""##### # ### | | ??????????????????# ########?##" ##???#####?? | | ??????????????????# #??????????#######??????????? | | ??????????????????###????????????????????????????? | | ?????????????????????????????????????????????????? | | ?????????????????????????????????????????????????? | | ?????????????????????????????????????????????????? | | ?????????????????????????????????????????????????? | | ?????????????????????????????????????????????????? | | ##???????????????????????????????????????????????? | | "##??????????????????????????????????????????????? | | " #??????????????????????????????????????????????? | | #??????????????????????????????????????????????? | | #??????????????????????????????????????????????? | | #####??????????????????????????????????????????? | | ##"#??????????????????????????????????????????? | | !&""###????????????????????????????????????????? | | # [ " #?##?????????????????????????????????????? | | ##& &*= ## ##???????????????????????########?????? | | ?## & #????????????????????#### ##????? | | ??# #???????????????????## ##???? | | #?# ####?##########??????### ##??? | +----------------------------------------------------+ Best States ------------- Heat Dissipation 25 Energy Generation 10 Energy Capacity 250 Matter Stores 300 Matter Capacity 300 Sight Range 16 Terrain Scan Density 10 Armor Coverage 225 Evasion (%) 40 Recoil Reduction 2 Item Schematics ----------------- None Robot Schematics ------------------ None Fabricated ------------ Nothing Repaired ---------- Lgt. Treads | 37% | -10/Materials Lgt. Treads | 67% | -10/Materials Alien Tech Used ----------------- None Achievements -------------- None Challenges ------------ None Game ------ Seed AlertHybridMegatreads Manual? 0 Play Time 00:18:29 Cumulative 444.8 hours Start 2024.11.09 @ 16:23:11 End 2024.11.09 @ 19:03:34 Sessions 3 Manual Loads 0 Difficulty Rogue Special Mode None Game No. 298 Rogue 293 Adventurer 5 Explorer 0 Win Type - Total 11 Types 5/0/5/0/0/0/1/0/0 Lore% 79 Gallery% 89 Achievement% 75 Wizard Run 0 Options --------- Layout 2 ASCII 0 Keyboard 0 Movement Mouse Keybinds 0 Fullscreen 2 Font 24/Smallcaps Map View 50x44 Zoom Use 0% Tactical HUD 1 Map Filters NONE Filters NONE Steam 1 RUN: 1dc390c0-729c-4596-be48-0ac27b53b928